[Event "ONJK-C 2019"]
[Site "Borne"]
[Date "2019.08.07"]
[Round "4.7"]
[White "Vleming, Annabel"]
[Black "Smeets, Kobe"]
[Result "0-1"]
[ECO "E90"]
[WhiteElo "1334"]
[BlackElo "1666"]
[Annotator "NA"]
[PlyCount "52"]
[EventDate "2019.08.05"]
[EventType "swiss"]
[EventCountry "NED"]
[SourceTitle "playchess.com"]
[Source "ChessBase"]
[SourceQuality "1"]
[TimeControl "5400+30"]

1. d4 {[%emt 0:00:00]} Nf6 {[%emt 0:00:00]} 2. c4 {[%emt 0:00:00]} g6 {[%emt 0:00:00]} 3. Nc3 {[%emt 0:00:00]} Bg7 {[%emt 0:00:00]} 4. Nf3 {[%emt 0:00:34]} O-O {[%emt 0:00:00]} 5. e4 {[%emt 0:01:26]} d6 {[%emt 0:00:00]} 6. Bd3 {[%emt 0:01:21]} e5 {[%emt 0:00:34]} 7. O-O {[%emt 0:01:12]} Nc6 {[%emt 0:00:14]} 8. Bc2 {[%emt 0:03:05]} Nd7 {[%emt 0:01:19]} 9. Be3 {[%emt 0:01:27]} a5 {[%emt 0:01:08]} 10. Qd2 {[%emt 0:01:16]} f5 {[%emt 0:08:17]} 11. Bh6 {[%emt 0:03:49]} f4 {[%emt 0:01:43]} 12. Bxg7 {[%emt 0:03:32]} Kxg7 {[%emt 0:00:12]} 13. g3 {[%emt 0:02:07]} g5 {[%emt 0:01:14]} 14. h4 {[%emt 0:03:03]} g4 {[%emt 0:01:57]} 15. Ng5 {[%emt 0:00:21]} Nb6 {[%emt 0:01:15]} 16. Nd5 {[%emt 0:07:58]} Nxd5 {[%emt 0:03:10]} 17. exd5 {[%emt 0:00:07]} Nxd4 {[%emt 0:01:04]} 18. Be4 {[%emt 0:06:03]} h6 {[%emt 0:02:30]} 19. Nh7 {[%emt 0:01:48]} Rf7 {[%emt 0:02:15]} 20. Qd3 {[%emt 0:01:45]} Bf5 {[%emt 0:01:52]} 21. gxf4 {[%emt 0:00:43]} Bxe4 {[%emt 0:00:23]} 22. Qxe4 {[%emt 0:00:09]} Rxf4 {[%emt 0:00:39]} 23. Qd3 {[%emt 0:01:08]} Qxh4 {[%emt 0:00:22]} 24. Qg3 {[%emt 0:03:10]} Ne2+ {[%emt 0:00:11]} 25. Kg2 {[%emt 0:00:21]} Nxg3 {[%emt 0:00:09]} 26. fxg3 {[%emt 0:02:48]} Qh3+ {[%emt 0:00:07]} 0-1

[Event "ONJK-C 2019"]
[Site "Borne"]
[Date "2019.08.07"]
[Round "4.8"]
[White "De Heij, Mees"]
[Black "Van Doren, Frodo"]
[Result "1-0"]
[ECO "C50"]
[WhiteElo "1617"]
[BlackElo "1433"]
[Annotator "NA"]
[PlyCount "105"]
[EventDate "2019.08.05"]
[EventType "swiss"]
[EventCountry "NED"]
[SourceTitle "playchess.com"]
[Source "ChessBase"]
[SourceQuality "1"]
[TimeControl "5400+30"]

1. e4 {[%emt 0:00:00]} e5 {[%emt 0:00:00]} 2. Nf3 {[%emt 0:00:00]} Nc6 {[%emt 0:00:00]} 3. Nc3 {[%emt 0:00:03]} Bc5 {[%emt 0:00:21]} 4. Bc4 {[%emt 0:00:22]} Nf6 {[%emt 0:00:30]} 5. d3 {[%emt 0:00:15]} h6 {[%emt 0:00:30]} 6. O-O {[%emt 0:00:09]} d6 {[%emt 0:01:11]} 7. h3 {[%emt 0:00:23]} O-O {[%emt 0:00:35]} 8. Be3 {[%emt 0:00:25]} Bb6 {[%emt 0:02:36]} 9. Qd2 {[%emt 0:01:52]} Re8 {[%emt 0:02:35]} 10. Nd5 {[%emt 0:02:01]} Nxd5 {[%emt 0:02:17]} 11. Bxd5 {[%emt 0:00:16]} Ne7 {[%emt 0:00:52]} 12. Bb3 {[%emt 0:01:47]} Ng6 {[%emt 0:02:29]} 13. Kh1 {[%emt 0:07:59]} Qf6 {[%emt 0:07:32]} 14. Qe2 {[%emt 0:09:42]} Nf4 {[%emt 0:02:15]} 15. Bxf4 {[%emt 0:00:10]} Qxf4 {[%emt 0:00:09]} 16. Nh2 {[%emt 0:01:44]} c6 {[%emt 0:02:18]} 17. Qf3 {[%emt 0:02:13]} Qxf3 {[%emt 0:00:33]} 18. Nxf3 {[%emt 0:00:08]} Be6 {[%emt 0:06:42]} 19. c3 {[%emt 0:01:19]} Rad8 {[%emt 0:00:52]} 20. Bxe6 {[%emt 0:02:57]} Rxe6 {[%emt 0:01:24]} 21. Rad1 {[%emt 0:00:21]} d5 {[%emt 0:02:51]} 22. exd5 {[%emt 0:00:13]} cxd5 {[%emt 0:01:40]} 23. Kg1 {[%emt 0:02:39]} f6 {[%emt 0:09:22]} 24. Rfe1 {[%emt 0:00:19]} Red6 {[%emt 0:06:51]} 25. g4 {[%emt 0:03:24]} g5 {[%emt 0:08:17]} 26. Kg2 {[%emt 0:01:27]} Kf7 {[%emt 0:03:11]} 27. Nd2 {[%emt 0:01:26]} e4 {[%emt 0:05:35]} 28. d4 {[%emt 0:01:22]} Bc7 {[%emt 0:00:33]} 29. Nf1 {[%emt 0:01:37]} Ra6 {[%emt 0:01:01]} 30. a3 {[%emt 0:00:12]} Bf4 {[%emt 0:00:29]} 31. Re2 {[%emt 0:00:04]} Kg6 {[%emt 0:01:17]} 32. Ng3 {[%emt 0:03:50]} Bxg3 {[%emt 0:00:47]} 33. Kxg3 {[%emt 0:01:07]} Rf8 {[%emt 0:00:48]} 34. c4 {[%emt 0:02:04]} f5 {[%emt 0:01:29]} 35. gxf5+ {[%emt 0:00:46]} Kxf5 {[%emt 0:00:27]} 36. cxd5 {[%emt 0:00:31]} Rd6 {[%emt 0:00:36]} 37. Rde1 {[%emt 0:00:19]} Rxd5 {[%emt 0:03:18]} 38. Rxe4 {[%emt 0:00:12]} Rfd8 {[%emt 0:00:09]} 39. Re5+ {[%emt 0:02:17]} Rxe5 {[%emt 0:00:10]} 40. Rxe5+ {[%emt 0:00:29]} Kf6 {[%emt 0:00:56]} 41. Re4 {[%emt 0:00:38]} Kf5 {[%emt 0:00:33]} 42. Kf3 {[%emt 0:00:41]} Rd6 {[%emt 0:00:36]} 43. Re5+ {[%emt 0:00:25]} Kf6 {[%emt 0:00:23]} 44. Ke4 {[%emt 0:00:32]} Rb6 {[%emt 0:00:31]} 45. b4 {[%emt 0:00:44]} Ra6 {[%emt 0:01:41]} 46. Ra5 {[%emt 0:00:12]} Re6+ {[%emt 0:00:54]} 47. Kd3 {[%emt 0:00:58]} a6 {[%emt 0:00:29]} 48. Rd5 {[%emt 0:02:24]} Ke7 {[%emt 0:00:42]} 49. Re5 {[%emt 0:00:36]} Rxe5 {[%emt 0:02:29]} 50. dxe5 {[%emt 0:04:31]} b5 {[%emt 0:00:16]} 51. Kd4 {[%emt 0:00:14]} h5 {[%emt 0:01:44]} 52. f3 {[%emt 0:00:10]} Ke6 {[%emt 0:00:59]} 53. Ke4 {[%emt 0:28:38] Kd5+} 1-0

[Event "ONJK-C 2019"]
[Site "Borne"]
[Date "2019.08.07"]
[Round "4.9"]
[White "Voorbergen, Milan"]
[Black "Dhaenens, Leon"]
[Result "0-1"]
[ECO "B40"]
[WhiteElo "1410"]
[BlackElo "1583"]
[Annotator "NA"]
[PlyCount "92"]
[EventDate "2019.08.05"]
[EventType "swiss"]
[EventCountry "NED"]
[SourceTitle "playchess.com"]
[Source "ChessBase"]
[SourceQuality "1"]
[TimeControl "5400+30"]

1. e4 {[%emt 0:00:00]} c5 {[%emt 0:00:00]} 2. Nf3 {[%emt 0:00:00]} e6 {[%emt 0:00:00]} 3. Nc3 {[%emt 0:00:09]} a6 {[%emt 0:00:00]} 4. d3 {[%emt 0:00:24]} Qc7 {[%emt 0:00:55]} 5. Bg5 {[%emt 0:00:49]} d6 {[%emt 0:01:26]} 6. Be2 {[%emt 0:01:15]} Nd7 {[%emt 0:03:13]} 7. O-O {[%emt 0:01:19]} Ngf6 {[%emt 0:02:04]} 8. Nd2 {[%emt 0:04:08]} Be7 {[%emt 0:02:23]} 9. Bh4 {[%emt 0:03:41]} b5 {[%emt 0:03:06]} 10. Bf3 {[%emt 0:03:16]} Bb7 {[%emt 0:02:02]} 11. Qe2 {[%emt 0:01:13]} Ne5 {[%emt 0:09:16]} 12. Bg3 {[%emt 0:02:54]} O-O {[%emt 0:01:47]} 13. Bxe5 {[%emt 0:02:09]} dxe5 {[%emt 0:00:02]} 14. Nd1 {[%emt 0:03:20]} Rfd8 {[%emt 0:12:13]} 15. Ne3 {[%emt 0:01:15]} Rd7 {[%emt 0:02:52]} 16. b3 {[%emt 0:03:17]} Rad8 {[%emt 0:03:35]} 17. Rfc1 {[%emt 0:02:56]} Ne8 {[%emt 0:12:00]} 18. Qf1 {[%emt 0:06:25]} Nd6 {[%emt 0:06:12]} 19. Rd1 {[%emt 0:03:54]} Nc8 {[%emt 0:05:05]} 20. Be2 {[%emt 0:05:13]} Na7 {[%emt 0:03:18]} 21. c4 {[%emt 0:02:47]} b4 {[%emt 0:00:58]} 22. a3 {[%emt 0:02:32]} Nc6 {[%emt 0:01:48]} 23. Nf3 {[%emt 0:03:13]} Nd4 {[%emt 0:02:32]} 24. Nxd4 {[%emt 0:00:28]} exd4 {[%emt 0:00:21]} 25. Nc2 {[%emt 0:01:05]} a5 {[%emt 0:02:48]} 26. a4 {[%emt 0:00:56]} f5 {[%emt 0:01:37]} 27. f3 {[%emt 0:03:32]} Rf8 {[%emt 0:02:16]} 28. Ne1 {[%emt 0:03:56]} fxe4 {[%emt 0:01:47]} 29. dxe4 {[%emt 0:00:18]} Bxe4 {[%emt 0:00:37]} 30. Bd3 {[%emt 0:01:26]} Bxd3 {[%emt 0:00:28]} 31. Nxd3 {[%emt 0:00:06]} Bd6 {[%emt 0:01:17]} 32. g3 {[%emt 0:00:43]} Rdf7 {[%emt 0:01:32]} 33. Kg2 {[%emt 0:01:57]} e5 {[%emt 0:02:06]} 34. Re1 {[%emt 0:01:12]} Rf6 {[%emt 0:01:58]} 35. Qf2 {[%emt 0:01:43]} Qf7 {[%emt 0:01:06]} 36. Rf1 {[%emt 0:03:01]} e4 {[%emt 0:00:41]} 37. Ne1 {[%emt 0:01:23]} e3 {[%emt 0:01:05]} 38. Qe2 {[%emt 0:00:20]} Rg6 {[%emt 0:01:14]} 39. Nd3 {[%emt 0:02:08]} Qf5 {[%emt 0:01:31]} 40. f4 {[%emt 0:01:44]} Qe4+ {[%emt 0:01:33]} 41. Kg1 {[%emt 0:01:40]} Rf5 {[%emt 0:02:02]} 42. Rf3 {[%emt 0:02:47]} h5 {[%emt 0:00:29]} 43. h4 {[%emt 0:01:06]} Bxf4 {[%emt 0:01:31]} 44. Raf1 {[%emt 0:04:50]} Bxg3 {[%emt 0:00:47]} 45. Kh1 {[%emt 0:03:31]} Qxh4+ {[%emt 0:00:11]} 46. Kg2 {[%emt 0:00:25]} Qh2# {[%emt 0:00:42]} 0-1

[Event "ONJK-C 2019"]
[Site "Borne"]
[Date "2019.08.07"]
[Round "4.10"]
[White "Ang, Rufus"]
[Black "Groen, Jari"]
[Result "1-0"]
[ECO "D38"]
[WhiteElo "1498"]
[BlackElo "1349"]
[Annotator "NA"]
[PlyCount "105"]
[EventDate "2019.08.05"]
[EventType "swiss"]
[EventCountry "NED"]
[SourceTitle "playchess.com"]
[Source "ChessBase"]
[SourceQuality "1"]
[TimeControl "5400+30"]

1. d4 {[%emt 0:00:00]} Nf6 {[%emt 0:00:00]} 2. c4 {[%emt 0:00:00]} e6 {[%emt 0:00:00]} 3. Nc3 {[%emt 0:00:00]} Bb4 {[%emt 0:00:00]} 4. Bg5 {[%emt 0:00:00]} d5 {[%emt 0:04:41]} 5. Nf3 {[%emt 0:00:44]} O-O {[%emt 0:01:19]} 6. e3 {[%emt 0:00:17]} h6 {[%emt 0:02:53]} 7. Bh4 {[%emt 0:00:41]} b6 {[%emt 0:04:09]} 8. Qb3 {[%emt 0:01:54]} Bxc3+ {[%emt 0:00:59]} 9. bxc3 {[%emt 0:01:39]} Bb7 {[%emt 0:00:48]} 10. Be2 {[%emt 0:00:28]} Nbd7 {[%emt 0:01:29]} 11. O-O {[%emt 0:01:09]} c5 {[%emt 0:01:42]} 12. Rfd1 {[%emt 0:01:45]} Qe7 {[%emt 0:02:21]} 13. Rac1 {[%emt 0:02:06]} Rfd8 {[%emt 0:02:28]} 14. Ne5 {[%emt 0:05:41]} g5 {[%emt 0:05:53]} 15. Bg3 {[%emt 0:01:06]} Ne4 {[%emt 0:02:32]} 16. Nxd7 {[%emt 0:01:43]} Rxd7 {[%emt 0:00:49]} 17. Be5 {[%emt 0:01:27]} Rad8 {[%emt 0:07:15]} 18. Bf3 {[%emt 0:07:12]} Nf6 {[%emt 0:11:25]} 19. Qa4 {[%emt 0:00:47]} Ba8 {[%emt 0:01:33]} 20. h3 {[%emt 0:03:26]} Ne4 {[%emt 0:03:08]} 21. Bxe4 {[%emt 0:04:10]} dxe4 {[%emt 0:00:04]} 22. Qa3 {[%emt 0:01:08]} f6 {[%emt 0:02:55]} 23. Bg3 {[%emt 0:00:58]} Bc6 {[%emt 0:01:33]} 24. Rd2 {[%emt 0:06:23]} b5 {[%emt 0:02:10]} 25. Qa6 {[%emt 0:01:29]} Ba8 {[%emt 0:04:54]} 26. Qxb5 {[%emt 0:01:06]} e5 {[%emt 0:02:04]} 27. d5 {[%emt 0:00:45]} Rb7 {[%emt 0:01:16]} 28. Qa4 {[%emt 0:02:50]} Rb6 {[%emt 0:01:16]} 29. Qc2 {[%emt 0:00:55]} f5 {[%emt 0:01:35]} 30. Rb1 {[%emt 0:00:59]} Rdb8 {[%emt 0:01:44]} 31. Rxb6 {[%emt 0:02:57]} Rxb6 {[%emt 0:00:20]} 32. f3 {[%emt 0:06:46]} f4 {[%emt 0:04:50]} 33. exf4 {[%emt 0:00:24]} exf4 {[%emt 0:00:27]} 34. Bf2 {[%emt 0:00:05]} e3 {[%emt 0:00:57]} 35. Re2 {[%emt 0:01:00]} exf2+ {[%emt 0:02:49]} 36. Kxf2 {[%emt 0:00:15]} Qf7 {[%emt 0:01:29]} 37. Qa4 {[%emt 0:03:53]} Rf6 {[%emt 0:02:28]} 38. Re8+ {[%emt 0:00:25]} Kg7 {[%emt 0:02:03]} 39. Rxa8 {[%emt 0:00:29]} Kg6 {[%emt 0:01:02]} 40. Rxa7 {[%emt 0:00:38]} Qf8 {[%emt 0:00:16]} 41. Qc2+ {[%emt 0:00:52]} Kh5 {[%emt 0:00:51]} 42. Kg1 {[%emt 0:06:59]} Qb8 {[%emt 0:00:55]} 43. Ra3 {[%emt 0:00:23]} Qe5 {[%emt 0:00:45]} 44. Qd2 {[%emt 0:00:59]} Rb6 {[%emt 0:00:49]} 45. Rb3 {[%emt 0:00:14]} Ra6 {[%emt 0:00:20]} 46. Rb2 {[%emt 0:00:06]} Ra3 {[%emt 0:00:43]} 47. Rc2 {[%emt 0:00:31]} Ra4 {[%emt 0:01:23]} 48. Qe2 {[%emt 0:00:55]} Qf6 {[%emt 0:01:09]} 49. Kh2 {[%emt 0:01:04]} Kg6 {[%emt 0:01:40]} 50. Qe4+ {[%emt 0:00:50]} Kh5 {[%emt 0:01:07]} 51. Qe8+ {[%emt 0:00:24]} Kh4 {[%emt 0:01:18]} 52. Qxa4 {[%emt 0:00:10]} Qe5 {[%emt 0:00:20]} 53. Rc1 {[%emt 0:00:13]} 1-0

[Event "ONJK-C 2019"]
[Site "Borne"]
[Date "2019.08.07"]
[Round "4.11"]
[White "De Rooij, Kevin"]
[Black "Yannopapas, Leontios"]
[Result "1/2-1/2"]
[ECO "D19"]
[WhiteElo "1480"]
[BlackElo "1329"]
[Annotator "NA"]
[PlyCount "53"]
[EventDate "2019.08.05"]
[EventType "swiss"]
[EventCountry "NED"]
[SourceTitle "playchess.com"]
[Source "ChessBase"]
[SourceQuality "1"]
[TimeControl "5400+30"]

1. d4 {[%emt 0:00:00]} d5 {[%emt 0:00:00]} 2. c4 {[%emt 0:00:01]} c6 {[%emt 0:00:00]} 3. Nf3 {[%emt 0:00:30]} Nf6 {[%emt 0:00:07]} 4. Nc3 {[%emt 0:01:02]} dxc4 {[%emt 0:00:58]} 5. a4 {[%emt 0:00:50]} Bf5 {[%emt 0:00:21]} 6. e3 {[%emt 0:00:26]} e6 {[%emt 0:01:07]} 7. Bxc4 {[%emt 0:00:44]} Nbd7 {[%emt 0:00:19]} 8. O-O {[%emt 0:01:21]} Bb4 {[%emt 0:00:16]} 9. Qe2 {[%emt 0:01:06]} O-O {[%emt 0:01:50]} 10. e4 {[%emt 0:00:58]} Bg6 {[%emt 0:02:16]} 11. Bd3 {[%emt 0:01:46]} Re8 {[%emt 0:04:26]} 12. e5 {[%emt 0:02:08]} Nd5 {[%emt 0:04:31]} 13. Nxd5 {[%emt 0:03:07]} cxd5 {[%emt 0:02:06]} 14. Rd1 {[%emt 0:02:22]} Rc8 {[%emt 0:02:36]} 15. Bd2 {[%emt 0:13:55]} Bxd2 {[%emt 0:01:59]} 16. Nxd2 {[%emt 0:02:08]} Bxd3 {[%emt 0:00:26]} 17. Qxd3 {[%emt 0:00:06]} Nb6 {[%emt 0:00:23]} 18. b3 {[%emt 0:01:22]} Qe7 {[%emt 0:02:53]} 19. h3 {[%emt 0:04:24]} Rc6 {[%emt 0:02:35]} 20. Rdc1 {[%emt 0:00:55]} Rec8 {[%emt 0:00:39]} 21. Rxc6 {[%emt 0:00:22]} Rxc6 {[%emt 0:00:14]} 22. a5 {[%emt 0:01:50]} Nd7 {[%emt 0:01:17]} 23. Qb5 {[%emt 0:01:36]} Nf8 {[%emt 0:00:59]} 24. a6 {[%emt 0:01:45]} Rxa6 {[%emt 0:08:20]} 25. Rxa6 {[%emt 0:00:15]} bxa6 {[%emt 0:00:08]} 26. Qxa6 {[%emt 0:00:05]} Qb4 {[%emt 0:01:19]} 27. Nf3 {[%emt 0:01:14]} 1/2-1/2

[Event "ONJK-C 2019"]
[Site "Borne"]
[Date "2019.08.07"]
[Round "4.12"]
[White "Knol, Daniel"]
[Black "Oskam, Julian"]
[Result "1-0"]
[ECO "C54"]
[WhiteElo "1662"]
[BlackElo "1197"]
[Annotator "NA"]
[PlyCount "85"]
[EventDate "2019.08.05"]
[EventType "swiss"]
[EventCountry "NED"]
[SourceTitle "playchess.com"]
[Source "ChessBase"]
[SourceQuality "1"]
[TimeControl "5400+30"]

1. e4 {[%emt 0:00:00]} e5 {[%emt 0:00:00]} 2. Nf3 {[%emt 0:00:00]} Nc6 {[%emt 0:00:00]} 3. Bc4 {[%emt 0:00:00]} Bc5 {[%emt 0:00:25]} 4. c3 {[%emt 0:00:00]} Nf6 {[%emt 0:03:25]} 5. d4 {[%emt 0:00:28]} exd4 {[%emt 0:01:12]} 6. cxd4 {[%emt 0:00:03]} Bb4+ {[%emt 0:00:58]} 7. Bd2 {[%emt 0:00:07]} Bxd2+ {[%emt 0:02:07]} 8. Nbxd2 {[%emt 0:00:45]} d6 {[%emt 0:00:29]} 9. O-O {[%emt 0:00:19]} O-O {[%emt 0:00:18]} 10. Re1 {[%emt 0:00:16]} d5 {[%emt 0:01:23]} 11. exd5 {[%emt 0:01:10]} Nxd5 {[%emt 0:00:08]} 12. Nf1 {[%emt 0:02:59]} Nb6 {[%emt 0:01:14]} 13. Bb5 {[%emt 0:00:27]} Bd7 {[%emt 0:01:23]} 14. Ne3 {[%emt 0:07:58]} a6 {[%emt 0:00:43]} 15. Bf1 {[%emt 0:00:23]} Re8 {[%emt 0:02:51]} 16. d5 {[%emt 0:01:19]} Ne5 {[%emt 0:01:22]} 17. Nxe5 {[%emt 0:01:06]} Rxe5 {[%emt 0:00:07]} 18. Qd4 {[%emt 0:00:02]} Qe7 {[%emt 0:02:33]} 19. g3 {[%emt 0:00:13]} Re8 {[%emt 0:01:40]} 20. Bg2 {[%emt 0:00:17]} Qf6 {[%emt 0:02:46]} 21. Qc3 {[%emt 0:03:19]} Na4 {[%emt 0:02:14]} 22. Qxc7 {[%emt 0:00:19]} Bb5 {[%emt 0:06:24]} 23. b3 {[%emt 0:00:56]} Nb2 {[%emt 0:00:46]} 24. Reb1 {[%emt 0:04:30]} h5 {[%emt 0:06:09]} 25. Nc4 {[%emt 0:25:25]} Re2 {[%emt 0:04:51]} 26. Rf1 {[%emt 0:00:32]} Nd3 {[%emt 0:01:24]} 27. Rad1 {[%emt 0:07:07]} Rxa2 {[%emt 0:06:40]} 28. Rxd3 {[%emt 0:00:25]} Bxc4 {[%emt 0:06:53]} 29. Qxc4 {[%emt 0:01:00]} Ree2 {[%emt 0:00:46]} 30. Qd4 {[%emt 0:01:13]} Qd6 {[%emt 0:04:39]} 31. Re3 {[%emt 0:00:41]} Red2 {[%emt 0:01:20]} 32. Re8+ {[%emt 0:00:40]} Kh7 {[%emt 0:01:20]} 33. Be4+ {[%emt 0:00:05]} Kh6 {[%emt 0:00:16]} 34. Rh8+ {[%emt 0:00:07]} Kg5 {[%emt 0:00:15]} 35. Qxg7+ {[%emt 0:00:02]} Qg6 {[%emt 0:00:24]} 36. h4+ {[%emt 0:00:11]} Kg4 {[%emt 0:00:43]} 37. Bxg6 {[%emt 0:00:14]} Kf3 {[%emt 0:01:03]} 38. Qf6+ {[%emt 0:00:12]} Ke2 {[%emt 0:00:49]} 39. Bxh5+ {[%emt 0:00:09]} Kd3 {[%emt 0:00:20]} 40. Bf3 {[%emt 0:00:55]} a5 {[%emt 0:01:22]} 41. Rc8 {[%emt 0:00:07]} Rdc2 {[%emt 0:00:54]} 42. Rd1+ {[%emt 0:00:11]} Rd2 {[%emt 0:01:05]} 43. Rc3# {[%emt 0:00:02]} 1-0

[Event "ONJK-C 2019"]
[Site "Borne"]
[Date "2019.08.07"]
[Round "4.13"]
[White "Arnold, Lorin"]
[Black "Alvares, Thomas"]
[Result "1-0"]
[ECO "D00"]
[WhiteElo "1583"]
[BlackElo "1408"]
[Annotator "NA"]
[PlyCount "37"]
[EventDate "2019.08.05"]
[EventType "swiss"]
[EventCountry "NED"]
[SourceTitle "playchess.com"]
[Source "ChessBase"]
[SourceQuality "1"]
[TimeControl "5400+30"]

1. d4 {[%emt 0:00:25]} Nf6 {[%emt 0:00:00]} 2. e3 {[%emt 0:00:05]} e6 {[%emt 0:00:00]} 3. Bd3 {[%emt 0:00:11]} d5 {[%emt 0:00:17]} 4. f4 {[%emt 0:00:10]} c5 {[%emt 0:01:45]} 5. c3 {[%emt 0:00:04]} Nc6 {[%emt 0:00:52]} 6. Nf3 {[%emt 0:00:06]} Be7 {[%emt 0:01:42]} 7. Nbd2 {[%emt 0:00:12]} cxd4 {[%emt 0:01:58]} 8. exd4 {[%emt 0:00:21]} O-O {[%emt 0:00:54]} 9. O-O {[%emt 0:00:05]} Bd6 {[%emt 0:07:19]} 10. Ne5 {[%emt 0:00:07]} Qb6 {[%emt 0:04:15]} 11. Kh1 {[%emt 0:00:15]} Ne7 {[%emt 0:01:46]} 12. Rf3 {[%emt 0:00:40]} Nf5 {[%emt 0:02:45]} 13. Rh3 {[%emt 0:00:15]} h6 {[%emt 0:05:25]} 14. g4 {[%emt 0:01:11]} Ne7 {[%emt 0:01:40]} 15. g5 {[%emt 0:00:11]} hxg5 {[%emt 0:02:56]} 16. fxg5 {[%emt 0:00:17]} Bxe5 {[%emt 0:01:58]} 17. gxf6 {[%emt 0:00:36]} Bxf6 {[%emt 0:00:38]} 18. Qh5 {[%emt 0:00:15]} Rd8 {[%emt 0:00:31]} 19. Qh8# {[%emt 0:00:10]} 1-0

[Event "ONJK-C 2019"]
[Site "Borne"]
[Date "2019.08.07"]
[Round "4.14"]
[White "Zaalmink, Bram"]
[Black "Van der Veen, Tjado"]
[Result "1-0"]
[ECO "D53"]
[WhiteElo "1367"]
[BlackElo "1282"]
[Annotator "NA"]
[PlyCount "67"]
[EventDate "2019.08.05"]
[EventType "swiss"]
[EventCountry "NED"]
[SourceTitle "playchess.com"]
[Source "ChessBase"]
[SourceQuality "1"]
[TimeControl "5400+30"]

1. d4 {[%emt 0:00:00]} d5 {[%emt 0:00:00]} 2. c4 {[%emt 0:00:00]} e6 {[%emt 0:00:00]} 3. Nc3 {[%emt 0:00:47]} Nf6 {[%emt 0:00:01]} 4. Bg5 {[%emt 0:00:50]} Be7 {[%emt 0:00:48]} 5. Nf3 {[%emt 0:00:38]} Nbd7 {[%emt 0:01:20]} 6. e3 {[%emt 0:01:26]} c5 {[%emt 0:01:09]} 7. cxd5 {[%emt 0:02:10]} exd5 {[%emt 0:01:40]} 8. dxc5 {[%emt 0:00:46]} Nxc5 {[%emt 0:03:28]} 9. Bd3 {[%emt 0:04:32]} Bg4 {[%emt 0:02:45]} 10. Bb5+ {[%emt 0:02:18]} Bd7 {[%emt 0:10:12]} 11. Bxd7+ {[%emt 0:01:31]} Qxd7 {[%emt 0:00:38]} 12. Bxf6 {[%emt 0:03:21]} Bxf6 {[%emt 0:02:16]} 13. Rc1 {[%emt 0:03:02]} O-O {[%emt 0:03:11]} 14. Nxd5 {[%emt 0:01:22]} Ne4 {[%emt 0:02:32]} 15. Nxf6+ {[%emt 0:01:34]} Nxf6 {[%emt 0:00:25]} 16. Qxd7 {[%emt 0:00:25]} Nxd7 {[%emt 0:00:07]} 17. Rc7 {[%emt 0:00:09]} Nf6 {[%emt 0:00:38]} 18. Rxb7 {[%emt 0:00:22]} Rfb8 {[%emt 0:00:04]} 19. Rxb8+ {[%emt 0:00:35]} Rxb8 {[%emt 0:00:02]} 20. b3 {[%emt 0:00:13]} h6 {[%emt 0:00:12]} 21. O-O {[%emt 0:00:32]} Rd8 {[%emt 0:01:26]} 22. Nd4 {[%emt 0:00:30]} Ne4 {[%emt 0:01:28]} 23. Rc1 {[%emt 0:01:00]} g6 {[%emt 0:01:54]} 24. f3 {[%emt 0:00:44]} Nf6 {[%emt 0:00:53]} 25. Kf2 {[%emt 0:01:37]} Kg7 {[%emt 0:00:17]} 26. Rc7 {[%emt 0:00:33]} a6 {[%emt 0:00:52]} 27. Ne6+ {[%emt 0:00:08]} Kg8 {[%emt 0:01:04]} 28. Nxd8 {[%emt 0:00:08]} Nd5 {[%emt 0:01:25]} 29. Rxf7 {[%emt 0:00:21]} Nc3 {[%emt 0:01:52]} 30. e4 {[%emt 0:00:42]} Nxa2 {[%emt 0:00:26]} 31. e5 {[%emt 0:00:07]} Nb4 {[%emt 0:00:25]} 32. e6 {[%emt 0:00:07]} Nd5 {[%emt 0:00:22]} 33. e7 {[%emt 0:00:11]} Nxe7 {[%emt 0:00:24]} 34. Rxe7 {[%emt 0:00:15]} 1-0

[Event "ONJK-C 2019"]
[Site "Borne"]
[Date "2019.08.07"]
[Round "5.1"]
[White "Klugstedt, Vincent"]
[Black "De Rycke, Tyani"]
[Result "0-1"]
[ECO "D36"]
[WhiteElo "1834"]
[BlackElo "1787"]
[Annotator "NA"]
[PlyCount "78"]
[EventDate "2019.08.05"]
[EventType "swiss"]
[EventCountry "NED"]
[SourceTitle "playchess.com"]
[Source "ChessBase"]
[SourceQuality "1"]
[TimeControl "5400+30"]

1. d4 {[%emt 0:00:00]} d5 {[%emt 0:00:00]} 2. c4 {[%emt 0:00:00]} e6 {[%emt 0:00:00]} 3. Nc3 {[%emt 0:00:00]} Nf6 {[%emt 0:00:00]} 4. cxd5 {[%emt 0:00:00]} exd5 {[%emt 0:00:00]} 5. Bg5 {[%emt 0:00:03]} c6 {[%emt 0:00:11]} 6. Qc2 {[%emt 0:00:46]} h6 {[%emt 0:00:35]} 7. Bh4 {[%emt 0:00:38]} Bd6 {[%emt 0:00:39]} 8. e3 {[%emt 0:01:16]} Nbd7 {[%emt 0:00:40]} 9. Nf3 {[%emt 0:00:46]} Qc7 {[%emt 0:00:34]} 10. Bd3 {[%emt 0:02:58]} O-O {[%emt 0:00:59]} 11. Bg3 {[%emt 0:02:26]} Bxg3 {[%emt 0:03:36]} 12. hxg3 {[%emt 0:00:13]} c5 {[%emt 0:01:13]} 13. dxc5 {[%emt 0:05:18]} Nxc5 {[%emt 0:00:25]} 14. O-O-O {[%emt 0:00:14]} Nxd3+ {[%emt 0:00:38]} 15. Qxd3 {[%emt 0:00:30]} Ne4 {[%emt 0:01:08]} 16. Qc2 {[%emt 0:04:01]} Nxc3 {[%emt 0:03:27]} 17. bxc3 {[%emt 0:06:19]} Rd8 {[%emt 0:05:13]} 18. Rh4 {[%emt 0:05:22]} Be6 {[%emt 0:02:01]} 19. Nd4 {[%emt 0:02:19]} Rac8 {[%emt 0:01:41]} 20. Kb2 {[%emt 0:01:15]} Rd6 {[%emt 0:02:12]} 21. Nb3 {[%emt 0:02:16]} Rc6 {[%emt 0:16:08]} 22. Rc1 {[%emt 0:01:04]} a5 {[%emt 0:05:03]} 23. Qd2 {[%emt 0:05:53]} Ra6 {[%emt 0:04:00]} 24. Nd4 {[%emt 0:06:03]} a4 {[%emt 0:03:02]} 25. Nc2 {[%emt 0:00:59]} a3+ {[%emt 0:01:18]} 26. Ka1 {[%emt 0:02:27]} Qxc3+ {[%emt 0:00:44]} 27. Qxc3 {[%emt 0:00:03]} Rxc3 {[%emt 0:00:10]} 28. f3 {[%emt 0:08:58]} Rac6 {[%emt 0:03:37]} 29. Kb1 {[%emt 0:00:29]} Bf5 {[%emt 0:00:15]} 30. e4 {[%emt 0:00:10]} dxe4 {[%emt 0:00:06]} 31. fxe4 {[%emt 0:00:18]} g5 {[%emt 0:00:06]} 32. exf5 {[%emt 0:01:31]} gxh4 {[%emt 0:00:06]} 33. gxh4 {[%emt 0:00:08]} Rb6+ {[%emt 0:00:13]} 34. Ka1 {[%emt 0:00:14]} Kg7 {[%emt 0:01:39]} 35. g4 {[%emt 0:00:58]} f6 {[%emt 0:00:14]} 36. h5 {[%emt 0:00:47]} Rb5 {[%emt 0:00:23]} 37. g5 {[%emt 0:00:24]} fxg5 {[%emt 0:00:14]} 38. f6+ {[%emt 0:00:37]} Kxf6 {[%emt 0:01:35]} 39. Rf1+ {[%emt 0:00:12]} Rf5 {[%emt 0:00:05]} 0-1